bitfinex-derivatives/quotes_ETHF0:USTF0_20251013
["timestamp","ask_amount","ask_price","bid_price","bid_amount"]
[1760395891781,0.42108,4270.8,4270.6,0.4211]
[1760395891977,0.42108,4270.8,4270.7,8.8818]
[1760395892673,0.4479,4271.0,4270.7,8.8818]
[1760395892878,0.42102,4271.4,4271.1,0.42105]
[1760395893081,0.42102,4271.4,4270.5,1.05277]
[1760395893082,0.74188,4271.9,4271.2,9.30284]
[1760395893373,0.1345,4272.0,4271.2,8.8818]
[1760395893374,1.16981723,4271.3,4271.2,8.8818]
[1760395893579,0.74878723,4271.3,4271.2,8.8818]
[1760395893779,0.53438723,4271.3,4271.2,8.8818]
[1760395893980,0.95541723,4271.3,4271.2,8.8828]
[1760395895380,0.74471723,4271.3,4271.2,8.8828]
[1760395896785,0.95541723,4271.3,4271.2,8.8828]
[1760395897084,1.16981723,4271.3,4271.2,8.8828]
[1760395897384,0.95541723,4271.3,4271.2,8.8828]
[1760395898579,0.74471723,4271.3,4271.2,8.8828]
[1760395898883,1.05266,4271.1,4270.7,3.2078]
[1760395899082,0.74198,4270.8,4270.7,3.2078]
[1760395899280,0.74198,4270.8,4270.7,8.8838]
[1760395900281,0.3209,4270.8,4270.7,8.8838]
[1760395900583,0.00278723,4271.3,4271.2,0.42104]
[1760395900785,0.00278723,4271.3,4271.2,6.09704]
[1760395902179,0.00278723,4271.3,4271.2,9.30484]
[1760395907094,0.42097,4271.9,4271.5,0.421]
[1760395907289,0.42097,4271.9,4271.6,6.096]
[1760395907488,0.42099,4271.8,4271.6,5.675]
[1760395907692,0.3126,4271.7,4271.6,5.675]
[1760395908086,0.31466417,4271.7,4271.6,5.675]
[1760395908288,0.00206417,4271.7,4271.6,6.096]
[1760395913701,0.33276417,4271.7,4271.6,5.675]
[1760395914797,0.42305417,4271.7,4271.6,5.675]
[1760395916496,0.42305417,4271.7,4271.4,0.42102]
[1760395916698,0.75173,4271.3,4271.2,3.2078]
[1760395917000,0.75173,4271.3,4271.2,8.8788]
[1760395917299,0.42103,4271.3,4271.2,8.8788]
[1760395918896,0.42103,4271.3,4271.2,3.2078]
[1760395919099,0.75173,4271.3,4271.2,3.2078]
[1760395919301,0.75173,4271.3,4271.2,8.8778]
[1760395919493,0.54532,4271.5,4271.2,8.8778]
[1760395919692,0.42103,4271.3,4271.2,8.8778]
[1760395920699,0.455,4271.5,4271.2,8.8778]
[1760395920902,0.42102,4271.5,4271.2,8.8778]
[1760395921206,0.42103,4271.3,4271.2,8.8778]
[1760395921394,0.75173,4271.3,4271.2,8.8778]
[1760395921803,0.97063,4271.3,4271.2,8.8778]
[1760395922003,0.75173,4271.3,4271.2,8.8778]
[1760395923803,0.42103,4271.3,4271.2,8.8778]
[1760395924102,0.97063,4271.3,4271.2,8.8768]
[1760395927107,0.42103,4271.3,4271.2,8.8768]
[1760395927404,0.54532,4271.5,4271.2,8.8768]
[1760395927599,0.3307,4271.6,4271.2,8.8768]
[1760395927799,0.42103,4271.3,4271.2,8.8768]
[1760395928709,0.42102,4271.4,4271.2,8.8768]
[1760395928902,0.00206417,4271.7,4271.2,8.8768]
[1760395929111,0.42305417,4271.7,4271.4,0.42102]
[1760395929304,0.9706,4271.6,4271.5,5.667]
[1760395929705,0.7517,4271.6,4271.5,5.667]
[1760395934312,0.421,4271.6,4271.5,5.667]
[1760395935012,0.00206417,4271.7,4271.6,0.421]
[1760395935402,0.42094,4272.3,4271.6,1.67578839]
[1760395935611,0.42094,4272.3,4271.5,6.71952]
[1760395935612,0.42094,4272.3,4272.2,3.2078]
[1760395935812,0.42094,4272.3,4272.2,8.8748]
[1760395936210,0.42093,4272.4,4272.2,8.8748]
[1760395936414,0.00293118,4272.4,4272.2,8.87769009]
[1760395937715,0.42093,4272.3,4272.2,8.87769009]
[1760395937914,0.42386118,4272.4,4272.2,8.87769009]
[1760395938816,0.42093,4272.3,4272.2,8.87769009]
[1760395940114,0.74273,4272.3,4272.2,3.21069009]
[1760395940320,1.18213,4272.3,4272.2,0.00289009]
[1760395940618,1.18213,4272.3,4272.2,5.66789009]
[1760395941219,0.74273,4272.3,4272.2,5.66789009]
[1760395943516,0.96063,4272.3,4272.2,5.66789009]
[1760395943719,1.18213,4272.3,4272.2,5.66789009]
[1760395945923,1.18213,4272.3,4272.2,0.00289009]
[1760395946128,0.74284,4271.2,4271.1,3.2078]
[1760395946423,0.74284,4271.2,4271.1,8.8728]
[1760395946624,0.96074,4271.2,4271.1,3.2078]
[1760395946922,0.3218,4270.7,4270.6,3.2078]
[1760395947224,0.7612,4270.7,4270.6,3.21020404]
[1760395947425,0.74303,4269.3,4269.1,4.88358839]
[1760395947722,0.54822,4269.5,4269.2,5.666]
[1760395947921,0.127,4269.5,4269.2,5.666]
[1760395948117,0.4212,4269.6,4269.2,5.666]
[1760395948318,0.42121,4269.5,4269.2,5.66894794]
[1760395948621,0.54821,4269.5,4269.2,5.66894794]
[1760395949123,0.87001,4269.5,4269.2,5.66894794]
[1760395950818,0.0026995,4269.6,4269.2,5.66894794]
[1760395951018,0.0026995,4269.6,4269.4,0.42122]
[1760395951221,0.0026995,4269.6,4269.5,5.667]
[1760395954215,3.2078,4270.9,4269.5,5.667]
[1760395954420,3.2078,4270.9,4270.3,3.62893]
[1760395954421,0.42109,4270.8,4270.3,3.62893]
[1760395954721,3.2078,4270.9,4270.4,5.668]
[1760395954913,0.3218,4270.4,4270.3,3.2078]
[1760395955118,0.32406993,4270.4,4270.3,8.8778]
[1760395955317,0.54196993,4270.4,4270.3,3.2078]
[1760395955516,0.5397,4269.9,4269.8,3.2078]
[1760395955723,0.3218,4269.9,4269.8,8.8788]
[1760395955920,0.127,4270.0,4269.8,8.8788]
[1760395956223,0.4488,4270.0,4269.8,8.8788]
[1760395956422,0.3218,4269.9,4269.8,8.8788]
[1760395957927,0.5397,4269.9,4269.8,8.8788]
[1760395958824,0.3218,4269.9,4269.8,8.8788]
[1760395959829,0.127,4270.0,4269.8,8.8788]
[1760395960025,0.4488,4270.0,4269.8,8.8788]
[1760395960220,0.127,4270.0,4269.8,8.8788]
[1760395960532,0.3218,4269.9,4269.8,8.8788]
[1760395963124,0.3218,4269.9,4269.8,5.671]
[1760395964130,0.5397,4269.9,4269.8,5.671]
[1760395964937,0.3218,4269.9,4269.8,5.671]
[1760395967034,0.5397,4269.9,4269.8,5.671]
[1760395968628,0.127,4270.0,4269.8,5.671]
[1760395968629,0.4454,4270.0,4269.8,5.671]
[1760395968933,0.4454,4270.0,4269.9,0.42117]
[1760395969139,0.3184,4269.9,4269.8,6.09218]
[1760395970633,0.127,4270.0,4269.9,0.42117]
[1760395970837,0.4454,4270.0,4269.9,0.42117]
[1760395971131,0.3184,4269.9,4269.8,6.09218]
[1760395971538,0.3184,4269.9,4269.8,5.671]
[1760395971735,0.3184,4269.9,4269.8,6.09218]
[1760395972437,0.42339993,4270.4,4269.9,0.42117]
[1760395972438,0.00226993,4270.4,4269.9,0.42117]
[1760395972632,0.3184,4270.3,4270.0,5.668]
[1760395972943,0.00226993,4270.4,4270.0,5.668]
[1760395973837,0.00226993,4270.4,4270.0,6.08916]
[1760395974834,0.3184,4270.3,4270.1,3.2078]
[1760395975038,0.3184,4270.3,4270.2,6.08814]
[1760395975434,0.00226993,4270.4,4270.2,6.08814]
[1760395975435,0.00226993,4270.4,4270.2,5.667]
[1760395975642,0.00226993,4270.4,4270.3,0.42113]
[1760395975832,0.127,4271.0,4270.8,0.42108]
[1760395976033,0.127,4271.0,4270.3,1.05283]
[1760395976034,0.4454,4271.0,4270.9,6.08807]
[1760395976340,0.4454,4271.0,4270.9,6.09007]
[1760395976728,0.127,4271.0,4270.9,6.09007]
[1760395976932,0.44631897,4271.0,4270.9,5.669]
[1760395977132,0.3184,4270.9,4270.8,0.42108]
[1760395977336,0.3184,4270.9,4270.8,6.08908]
[1760395978441,0.00301897,4271.0,4270.9,0.42107]
[1760395978931,0.1249,4272.0,4271.8,0.42097]
[1760395979129,0.1249,4272.0,4271.9,5.67]
[1760395979334,3.3327,4272.5,4272.3,0.42093]
[1760395979541,3.6511,4272.5,4272.4,5.67]
[1760395979737,3.65277694,4272.5,4272.4,5.67186109]
[1760395980744,3.2078,4273.0,4272.7,0.4209]
[1760395980945,3.2078,4273.0,4272.7,6.0899]
[1760395981837,0.0248309,4272.8,4272.7,6.0899]
[1760395983347,0.3184,4273.9,4272.7,6.72124]
[1760395983546,0.3184,4273.9,4273.7,0.42079]
[1760395983845,0.1249,4275.0,4274.0,0.42076]
[1760395983846,3.6511,4274.5,4274.0,0.42076]
[1760395984042,0.3184,4274.4,4274.0,0.42076]
[1760395984347,0.3184,4274.4,4273.3,1.0521]
[1760395984348,0.3184,4274.3,4274.1,5.669]
[1760395984649,0.00243544,4274.4,4274.2,6.09174]
[1760395985557,0.00243544,4274.4,4273.7,3.2078]
[1760395985753,0.00243544,4274.4,4273.8,5.674]
[1760395986057,0.3184,4274.3,4273.8,5.674]
[1760395986258,0.00243544,4274.4,4273.8,5.674]
[1760395986756,0.3184,4274.3,4273.8,5.674]
[1760395987256,0.00243544,4274.4,4273.8,5.674]
[1760395987558,0.3184,4274.3,4273.8,5.674]
[1760395987855,0.00243544,4274.4,4273.8,5.674]
[1760395988056,0.3184,4274.3,4273.8,5.674]
[1760395988250,0.00243544,4274.4,4273.8,5.674]
[1760395988447,0.3184,4274.3,4273.8,5.674]
[1760395988660,0.3184,4274.3,4273.8,6.09478]
[1760395988957,0.00243544,4274.4,4273.9,0.42077]
[1760395989450,0.32083544,4274.4,4273.8,5.674]
[1760395989655,0.00243544,4274.4,4274.2,3.2078]
[1760395989856,0.00243544,4274.4,4274.3,5.672]
[1760395990446,0.3184,4274.3,4274.2,3.2078]
[1760395990653,0.7479,4274.3,4274.2,3.2078]
[1760395990852,0.7479,4274.3,4272.4,1.24017285]
[1760395990853,1.16869,4273.8,4273.7,3.2078]
[1760395991052,0.63563,4273.4,4273.1,3.2078]
[1760395991255,0.3184,4273.3,4273.2,3.722]
[1760395992260,0.3184,4273.3,4273.2,5.672]
[1760395992858,0.1249,4273.5,4273.2,5.672]
[1760395993055,0.3184,4273.9,4273.2,6.09284]
[1760395993360,0.3184,4273.9,4273.2,5.672]
[1760395993859,0.3184,4273.9,4273.3,6.09283]
[1760395994161,0.1249,4274.0,4273.6,3.2078]
[1760395994352,0.3184,4273.9,4273.7,5.673]
[1760395994554,0.54567,4274.0,4273.7,5.673]
[1760395994753,0.3184,4273.8,4273.7,5.673]
[1760395995149,0.3184,4273.8,4273.6,3.2078]
[1760395995353,0.3184,4273.8,4273.7,5.673]
[1760395996662,0.3087,4273.9,4273.7,5.673]
[1760395996862,0.1249,4274.0,4273.7,5.673]
[1760395997059,0.3087,4273.9,4273.7,5.673]
[1760395997263,0.1249,4274.0,4273.7,5.673]
[1760395997557,0.31113544,4274.4,4273.9,0.42077]
[1760395997763,0.00243544,4274.4,4274.0,5.672]
[1760395997960,0.00243544,4274.4,4274.1,0.42076]
[1760395998155,0.00243544,4274.4,4274.0,5.672]
[1760395998351,0.3087,4274.3,4274.0,5.672]
[1760396000067,0.00243544,4274.4,4274.0,5.672]
[1760396000268,0.00243544,4274.4,4274.2,0.42074]
[1760396000567,0.00243544,4274.4,4274.3,5.671]
[1760396000864,0.00243544,4274.4,4274.3,6.09174]
[1760396001264,0.1249,4275.0,4274.5,0.42071]
[1760396001461,0.1249,4275.0,4274.6,5.671]
[1760396001660,3.5165,4275.2,4274.6,5.671]
[1760396001966,0.3087,4275.2,4274.8,3.2078]
[1760396002166,0.3087,4275.2,4274.9,5.671]
[1760396002362,0.00237576,4275.2,4274.9,5.671]
[1760396003366,0.00237576,4275.2,4275.0,0.42067]
[1760396003561,3.5165,4275.7,4275.1,5.671]
[1760396003865,0.4374,4275.5,4275.1,6.09166]
[1760396004066,0.4374,4275.5,4275.2,5.672]
[1760396004454,0.3087,4274.9,4274.8,3.2078]
[1760396004657,0.3087,4274.9,4274.8,8.8788]
[1760396005063,0.3087,4274.6,4274.2,3.2078]
[1760396005263,0.42073,4274.4,4274.2,3.2078]
[1760396005462,0.3087,4274.3,4274.2,3.2078]
[1760396005665,0.3087,4274.3,4274.2,8.8788]
[1760396005868,0.42073,4274.4,4274.2,8.8788]
[1760396006864,0.72943,4274.4,4274.2,8.8788]
[1760396008359,0.3087,4274.3,4274.2,3.2078]
[1760396008564,0.3087,4274.3,4274.2,8.8788]
[1760396010065,0.42073,4274.4,4274.2,8.8788]
[1760396010263,0.72948,4273.9,4273.7,3.2078]
[1760396010464,0.3087,4273.8,4273.7,3.2078]
[1760396010769,0.72955,4273.2,4273.1,3.2078]
[1760396010968,0.42089,4272.8,4272.6,3.2078]
[1760396011171,0.3087,4272.7,4272.6,3.2078]
[1760396011372,0.3087,4272.7,4272.6,8.8788]
[1760396011559,0.1287,4273.0,4272.6,8.8788]
[1760396011765,0.42084,4273.3,4272.6,8.8788]
[1760396012073,0.42085,4273.2,4272.6,8.8788]
[1760396012370,0.4374,4273.0,4272.6,8.8788]
[1760396013067,0.1287,4273.5,4272.6,8.8788]
[1760396013068,0.42083,4273.4,4272.7,0.42089]
[1760396013264,0.1287,4273.5,4272.8,0.42088]
[1760396013459,0.42083,4273.4,4272.8,0.42088]
[1760396013770,0.42081,4273.6,4272.6,8.8788]
[1760396013969,0.42081,4273.6,4273.2,3.2078]
[1760396014167,0.4374,4274.0,4273.3,5.672]
[1760396014466,0.42078,4273.9,4273.3,6.09283]
[1760396014673,0.42078,4273.9,4273.7,3.2078]
[1760396014972,0.42078,4273.9,4273.8,5.672]
[1760396016068,0.72948,4273.9,4273.8,5.672]
[1760396016469,0.93468,4273.9,4273.8,5.672]
[1760396016665,0.72948,4273.9,4273.8,5.672]
[1760396017570,0.93468,4273.9,4273.8,5.672]
[1760396017762,0.3087,4273.3,4273.2,3.2078]
[1760396017965,0.1287,4273.5,4273.2,8.8778]
[1760396018169,0.42081,4273.6,4273.2,8.8778]
[1760396019270,0.3087,4273.4,4273.2,8.8778]
[1760396019676,0.1287,4273.5,4273.2,8.8778]
[1760396019975,0.42081,4273.7,4273.2,8.8778]
[1760396020378,0.3087,4273.3,4273.2,3.2078]
[1760396020680,0.7207,4273.3,4273.2,5.672]
[1760396021177,1.14154,4273.3,4273.2,5.672]
[1760396021373,0.93474,4273.3,4273.2,5.672]
[1760396021975,1.14154,4273.3,4273.2,5.672]
[1760396022176,1.71785456,4273.3,4273.2,5.672]
[1760396022678,1.71785456,4273.3,4272.6,3.2078]
[1760396022679,0.75481,4272.5,4272.1,3.2078]
[1760396022873,1.06623792,4272.5,4272.4,5.67386109]
[1760396025179,1.27303792,4272.5,4272.4,0.00186109]
[1760396025379,0.86103792,4272.5,4272.4,5.67386109]
[1760396026078,0.55233792,4272.5,4272.4,5.67386109]
[1760396026473,0.88533792,4272.5,4272.4,5.67386109]
[1760396026984,1.10473792,4272.5,4272.4,5.67386109]
[1760396027478,0.42099,4271.7,4271.6,3.2078]
[1760396027681,0.97344,4271.2,4271.1,3.2078]
[1760396027883,0.333,4271.2,4271.1,8.8828]
[1760396028084,0.5524,4271.2,4271.1,8.8828]
[1760396028284,0.7633,4271.2,4271.1,5.675]
[1760396028684,0.7633,4271.2,4271.1,5.67719337]
[1760396029385,0.333,4271.2,4271.1,5.67719337]
[1760396029585,0.5491,4271.2,4271.1,5.67719337]
[1760396030283,0.333,4271.2,4271.1,5.67719337]
[1760396030483,0.5491,4271.2,4271.1,5.67719337]
[1760396030988,0.333,4271.2,4271.1,5.67719337]
[1760396031280,0.42104,4271.3,4271.1,5.67719337]
[1760396031586,0.88112,4271.5,4271.3,0.42103]
[1760396031788,0.88112,4271.5,4271.1,9.30603337]
[1760396032088,0.3365,4271.4,4271.1,8.88499337]
[1760396032687,0.75752,4271.4,4271.1,8.88499337]
[1760396033185,3.2078,4272.2,4271.1,8.88499337]
[1760396033387,0.42083,4273.4,4271.9,1.05243]
[1760396033596,0.54472,4273.5,4272.6,3.2078]
[1760396033787,0.1239,4273.5,4272.7,5.685]
[1760396033989,0.4604,4274.0,4273.3,0.42083]
[1760396034291,0.1256892,4274.0,4273.4,6.10582]
[1760396034590,0.1256892,4274.0,4273.8,3.2078]
[1760396034888,0.0017892,4274.0,4273.9,5.685]
[1760396035183,0.1239,4275.0,4274.5,0.42071]
[1760396035386,0.4604,4275.0,4274.6,5.685]
[1760396035582,3.6682,4275.5,4274.6,5.685]
[1760396035789,0.3365,4275.9,4275.2,0.42064]
[1760396035987,0.33942243,4275.9,4275.3,5.685]
[1760396036591,0.33942243,4275.9,4275.5,3.2078]
[1760396036791,0.00292243,4275.9,4275.5,3.2078]
[1760396037190,0.3365,4275.8,4275.5,3.2078]
[1760396037489,0.3365,4275.7,4275.6,5.685]
[1760396038484,0.75711,4275.6,4275.5,3.2078]
[1760396038684,0.75711,4275.6,4275.5,8.8938]
[1760396038886,0.75711,4275.6,4275.5,5.686]
[1760396039592,0.00292243,4275.9,4275.2,0.00302366]
[1760396039593,0.75714,4275.3,4275.2,0.00302366]
[1760396039792,0.75714,4275.3,4275.2,5.68902366]
[1760396040987,0.3365,4275.3,4275.2,5.68902366]
[1760396041192,0.1239,4275.5,4275.2,5.68902366]
[1760396041493,0.3365,4275.5,4275.2,5.68902366]
[1760396043589,0.75712,4275.5,4275.2,5.68902366]
[1760396044690,0.42062,4275.5,4275.2,5.68902366]
[1760396045096,0.42063,4275.4,4275.2,5.68902366]
[1760396045299,0.3365,4275.3,4275.2,0.00302366]
[1760396045590,0.5526,4275.3,4275.2,5.68502366]
[1760396045994,0.3365,4275.3,4275.2,5.68502366]
[1760396047696,0.3365,4275.8,4275.4,0.42063]
[1760396047897,0.00292243,4275.9,4275.6,0.42061]
[1760396048090,0.42350243,4275.9,4275.7,5.681]
[1760396048293,0.76000243,4275.9,4275.8,5.681]
[1760396049001,0.3365,4275.3,4275.2,0.00302366]
[1760396049200,0.3365,4275.3,4275.2,5.68402366]
[1760396049500,0.42074,4274.3,4274.1,3.2078]
[1760396049696,0.3365,4273.7,4273.6,3.2078]
[1760396049897,0.3365,4273.7,4273.6,8.8908]
[1760396050700,0.1239,4274.0,4273.7,0.4208]
[1760396050897,0.4604,4274.0,4273.7,0.4208]
[1760396051094,0.3365,4273.9,4273.7,0.4208]
[1760396051298,0.3365,4274.4,4273.6,8.8931758]
[1760396052000,0.42074,4274.3,4273.6,8.8931758]
[1760396052201,0.75725,4274.2,4273.8,0.42078]
[1760396052498,0.75726,4274.1,4273.8,0.42078]
[1760396052798,0.3365,4273.7,4273.6,3.2101758]
[1760396052996,0.3365,4273.7,4273.6,5.1573758]
[1760396055099,0.42079,4273.8,4273.6,5.1573758]
[1760396055297,0.72999,4273.8,4273.6,5.1573758]
[1760396055601,0.3092,4273.7,4273.6,5.1573758]
[1760396057702,0.3092,4273.7,4273.6,0.0023758]
[1760396059798,0.73,4273.7,4273.6,0.0023758]
[1760396062406,1.1564,4273.7,4273.6,0.0023758]
[1760396064103,0.9406,4273.7,4273.6,0.0023758]
[1760396065903,0.73,4273.7,4273.6,0.0023758]
[1760396066112,0.73,4273.7,4273.6,0.4231858]
[1760396066514,0.9406,4273.7,4273.6,0.0023758]
[1760396066809,1.1564,4273.7,4273.6,0.0023758]
[1760396072314,1.1564,4273.7,4273.5,5.681]
[1760396072517,0.5198,4272.8,4271.8,1.67474566]
[1760396072714,0.3092,4272.2,4272.1,3.2078]
[1760396073416,0.00247756,4272.2,4272.1,3.21053108]
[1760396073606,0.42341756,4272.2,4272.1,3.21053108]
[1760396073809,0.42084,4273.3,4272.1,3.21053108]
[1760396074009,0.3092,4274.3,4273.2,3.2078]
[1760396074218,0.3092,4274.3,4273.8,3.2078]
[1760396074219,0.42077,4274.1,4273.8,3.2078]
[1760396074413,0.3092,4274.1,4273.9,5.682]
[1760396074813,0.31099949,4274.1,4273.9,5.682]
[1760396075014,0.73175949,4274.1,4273.9,5.682]
[1760396076622,0.31099949,4274.1,4273.9,5.682]
[1760396077517,0.00179949,4274.1,4273.9,5.682]
[1760396077717,0.42255949,4274.1,4273.9,5.682]
[1760396078417,0.73175949,4274.1,4273.9,5.682]
[1760396080922,0.3092,4274.9,4274.0,1.05193]
[1760396081221,0.54357,4275.0,4274.7,0.4207]
[1760396081421,0.3092,4274.9,4274.8,5.679]
[1760396082416,0.73221373,4274.9,4274.8,5.679]
[1760396086323,0.73221373,4274.9,4274.6,3.2078]
[1760396086324,0.4207,4274.7,4274.6,3.2078]
[1760396086627,0.4207,4274.7,4274.6,8.8838]
[1760396087024,0.1245,4274.5,4274.1,3.2078]
[1760396087229,0.94765,4274.2,4274.1,3.2078]
[1760396087533,0.94765,4274.2,4274.1,5.676]
[1760396088024,0.1245,4274.5,4274.1,5.676]
[1760396088025,0.1245,4274.5,4274.1,8.8838]
[1760396088227,0.42074,4274.3,4274.1,8.8838]
[1760396088526,0.42075,4274.2,4274.1,8.8838]
[1760396088726,0.75175,4274.2,4274.1,8.8838]
[1760396089320,0.75175,4274.2,4274.1,5.676]
[1760396092836,0.75175,4274.2,4274.1,8.8838]
[1760396093434,0.42075,4274.2,4274.1,8.8838]
[1760396093825,0.1229,4275.0,4274.1,8.8838]
[1760396093826,0.42067,4275.0,4274.1,8.8838]
[1760396094127,0.42067,4275.0,4274.6,3.62851]
[1760396094325,0.42301373,4274.9,4274.7,5.676]
[1760396094728,0.331,4274.8,4274.7,5.676]
[1760396096934,0.5377,4274.8,4274.7,5.676]
[1760396097329,0.331,4274.8,4274.7,5.676]
[1760396098234,0.75169,4274.8,4274.7,5.676]
[1760396098830,0.42069,4274.8,4274.7,5.676]
[1760396100929,0.33333373,4274.9,4274.7,5.676]
[1760396101136,0.75401373,4274.9,4274.7,5.676]
[1760396101335,0.42069,4274.8,4274.7,5.676]
[1760396101536,0.95839,4274.8,4274.7,5.676]
[1760396101838,0.75169,4274.8,4274.7,5.676]
[1760396104130,1.18049,4274.8,4274.7,5.676]
[1760396104526,0.1254,4274.0,4273.9,1.67474566]
[1760396104729,0.6275,4273.7,4273.6,3.2078]
[1760396104925,0.7518,4273.7,4273.6,8.8788]
[1760396105134,0.1254,4274.0,4273.6,8.8788]
[1760396105432,0.331,4273.9,4273.6,8.8788]
[1760396105834,0.42079,4273.8,4273.6,8.8788]
[1760396106739,0.42079,4273.8,4273.6,9.29961]
[1760396107133,0.75179,4273.8,4273.6,9.29961]
[1760396108237,0.7518,4273.7,4273.6,8.8788]
[1760396109337,1.1806,4273.7,4273.6,5.671]
[1760396111343,0.7518,4273.7,4273.6,5.671]
[1760396112242,0.9585,4273.7,4273.6,5.671]
[1760396117355,0.715,4273.2,4273.1,3.2078]
[1760396117552,0.72656,4273.1,4273.0,5.669]
[1760396117758,0.93046,4273.1,4273.0,5.669]
[1760396118053,0.72656,4273.1,4273.0,5.669]
[1760396119856,1.13586,4273.1,4273.0,5.669]
[1760396121856,1.48347,4273.0,4272.6,3.2078]
[1760396122158,0.3057,4272.4,4272.1,3.21053108]
[1760396122354,0.72663,4272.4,4272.2,5.667]
[1760396122554,0.3057,4272.3,4272.2,5.667]
[1760396123760,0.72663,4272.3,4272.2,5.667]
[1760396125963,0.93053,4272.3,4272.2,5.667]
[1760396126264,0.72663,4272.3,4272.2,5.667]
[1760396129358,0.93053,4272.3,4272.2,5.667]
[1760396129961,0.72663,4272.3,4272.2,5.667]
[1760396130260,1.13594,4272.2,4272.1,0.00273108]
[1760396130462,0.62492,4271.4,4271.3,3.2078]
[1760396130667,0.93062,4271.4,4271.3,8.8748]
[1760396131462,0.93351902,4271.4,4271.3,8.87648154]
[1760396134259,1.14121902,4271.4,4271.3,8.87648154]
[1760396134464,0.3308,4270.4,4270.3,3.2078]
[1760396134664,0.75197,4269.9,4269.8,3.2078]
[1760396134868,0.3308,4270.3,4269.8,8.8758]
[1760396135060,0.1258,4270.5,4269.8,8.8758]
[1760396135367,0.3308,4270.4,4270.3,3.2078]
[1760396135569,0.3308,4270.4,4270.3,8.8780138]
[1760396138472,0.5346,4270.4,4270.3,5.6702138]
[1760396138664,0.3308,4270.4,4270.3,5.6702138]
[1760396142870,0.3308,4270.8,4270.3,5.6702138]
[1760396143075,0.1258,4271.0,4270.8,0.42108]
[1760396143278,0.6604,4271.0,4270.9,5.668]
[1760396143573,0.8681,4271.0,4270.9,5.668]
[1760396143874,0.8681,4271.0,4270.3,0.0022138]
[1760396143875,0.5346,4270.4,4270.3,0.0022138]
[1760396144070,0.5346,4270.4,4270.3,5.6702138]
[1760396144471,0.3308,4270.4,4270.3,5.6702138]
[1760396145072,0.5346,4270.4,4270.3,5.6702138]
[1760396145973,1.16342,4270.4,4270.3,5.6702138]
[1760396146766,0.95572,4270.4,4270.3,5.6702138]
[1760396151474,1.17312,4270.4,4270.3,5.6702138]
[1760396152376,0.95572,4270.4,4270.3,5.6702138]
[1760396155774,1.17792,4270.4,4270.3,5.6702138]
[1760396160272,0.75192,4270.4,4270.3,5.6702138]
[1760396160472,1.19642,4270.4,4270.3,5.6702138]
[1760396162278,1.77374811,4270.4,4270.3,5.6702138]
[1760396163179,0.123,4270.0,4269.8,3.2078]
[1760396163380,0.5484,4269.4,4269.3,3.2078]
[1760396163682,0.5484,4269.4,4269.3,8.8768]
[1760396164283,0.96962,4269.4,4269.3,8.879325]
[1760396164583,0.3261,4269.4,4269.3,8.879325]
[1760396165081,0.5484,4269.4,4269.3,8.879325]
[1760396165383,1.19182,4269.4,4269.3,8.879325]
[1760396166981,1.19182,4269.4,4269.3,5.671525]
[1760396170078,1.19182,4269.4,4269.3,6.092755]
[1760396170282,0.3261,4269.4,4269.3,6.092755]
[1760396170481,0.3261,4269.4,4269.3,9.300555]
[1760396172789,1.19182,4269.4,4269.3,0.002525]
[1760396173483,0.3261,4269.4,4269.3,3.210325]
[1760396173682,0.123,4269.5,4269.3,3.631555]
[1760396173884,0.87032,4269.5,4269.3,3.631555]
[1760396174073,0.3261,4269.4,4269.3,3.631555]
[1760396175285,0.74732,4269.4,4269.3,3.210325]
[1760396176180,0.123,4269.5,4269.3,3.210325]
[1760396176381,0.4212,4269.7,4269.4,5.669]
[1760396176582,0.7582,4269.7,4269.4,5.669]
[1760396176883,0.4212,4269.6,4269.4,5.669]
[1760396177086,0.88921,4269.5,4269.4,5.669]
[1760396177288,0.468,4269.5,4269.4,6.09022]
[1760396181790,0.6817,4269.5,4269.4,5.669]
[1760396181992,0.337,4269.4,4269.3,3.210325]
[1760396182194,1.18152,4269.4,4269.3,5.671525]
[1760396183488,0.7603,4269.4,4268.4,1.67474566]
[1760396183693,0.7603,4269.4,4267.8,0.34643128]
[1760396183694,0.4213,4268.6,4268.5,0.4561]
[1760396183996,1.00128531,4268.6,4268.5,0.4561]
[1760396184195,1.00049296,4268.6,4268.5,0.4561]
[1760396184398,0.42135,4268.1,4268.0,0.1331]
[1760396184600,3.63128596,4268.1,4268.0,0.13594168]
[1760396184897,4.21052369,4268.1,4268.0,0.1331]
[1760396185094,0.42137,4267.9,4267.8,2.96e-06]
[1760396185288,1.00060773,4267.9,4267.8,2.96e-06]
[1760396185496,0.42145,4267.1,4266.5,0.1331]
[1760396185695,9.29925,4267.1,4266.5,0.1331]
[1760396185989,9.29925,4267.1,4267.0,3.7e-06]
[1760396186190,3.62925,4267.1,4267.0,0.5758037]
[1760396186394,3.2078,4267.1,4267.0,0.8988037]
[1760396186589,3.62925,4267.1,4267.0,0.8988037]
[1760396186801,3.62925,4267.1,4267.0,0.6760037]
[1760396186995,3.62925,4267.1,4267.0,0.8988037]
[1760396187700,0.4214,4267.6,4267.0,0.9972537]
[1760396187889,0.4214,4267.6,4267.5,0.8988]
[1760396198403,0.4214,4267.6,4267.5,1.32021]
[1760396199302,0.00213596,4268.1,4268.0,0.1331]
[1760396199497,0.42348596,4268.1,4268.0,1.32016]
[1760396199702,0.42348596,4268.1,4268.0,0.8988]
[1760396200109,0.42348596,4268.1,4268.0,1.32016]